fUST/lending_fUST_20250226
["ID","MTS","AMOUNT","RATE_DAILY","PERIOD"]
[354578331,1740579850556,-2296.51,0.0005726,120]
[354578332,1740579850629,-500.0,0.0005726,120]
[354578333,1740579850732,-500.0,0.0005726,120]
[354578334,1740579850819,-500.0,0.0005726,120]
[354578335,1740579850895,-3158.28,0.0005726,120]
[354578336,1740579850966,-500.0,0.0005726,120]
[354578337,1740579851035,-569.86540444,0.0005726,120]
[354578338,1740579851100,-986.87,0.0005726,120]
[354578339,1740579851170,-500.0,0.0005726,120]
[354578340,1740579851238,-1283.45,0.0005726,120]
[354578341,1740579851303,-1562.71,0.0005726,120]
[354578342,1740579851375,-500.0,0.0005726,120]
[354578343,1740579851439,-500.0,0.0005726,120]
[354578344,1740579851510,-1742.25,0.0005726,120]
[354578345,1740579851583,-1458.25,0.0005726,120]
[354578346,1740579851651,-566.02,0.0005726,120]
[354578347,1740579851728,-419.59109219,0.0005726,120]
[354578348,1740579851797,-1798.68,0.0005726,120]
[354578349,1740579851863,-671.49,0.0005726,120]
[354578350,1740579851928,-3547.41,0.0005726,120]
[354578351,1740579851995,-2841.24,0.0005726,120]
[354578352,1740579852102,-2630.42,0.0005726,120]
[354578353,1740579852184,-1998.76,0.0005726,120]
[354578354,1740579852259,-3000.0,0.0005726,120]
[354578355,1740579852335,-500.0,0.0005726,120]
[354578356,1740579852412,-500.0,0.0005726,120]
[354578357,1740579852489,-500.0,0.0005726,120]
[354578358,1740579852554,-500.0,0.0005726,10]
[354578359,1740579852622,-411.46420398,0.0005726,20]
[354578360,1740579852693,-603.2708573,0.0005726,120]
[354578361,1740579852761,-500.0,0.0005726,120]
[354578362,1740579852833,-4196.21,0.0005726,120]
[354578363,1740579852897,-500.0,0.0005726,120]
[354578364,1740579852961,-500.0,0.0005726,120]
[354578365,1740579853028,-2816.05,0.0005726,120]
[354578366,1740579853092,-250.0,0.0005726,120]
[354578367,1740579853155,-527.41,0.0005726,120]
[354578368,1740579853226,-544.05,0.0005726,120]
[354578369,1740579853294,-500.0,0.0005726,120]
[354578370,1740579853358,-734.83,0.0005726,120]
[354578371,1740579853425,-583.15,0.000573,30]
[354578372,1740579853494,-1002.68677148,0.00057303,15]
[354578373,1740579853567,-5555.0,0.0005732,120]
[354578374,1740579853633,-5555.0,0.0005732,120]
[354578375,1740579853700,-5555.0,0.0005732,120]
[354578376,1740579853904,-5555.0,0.0005732,120]
[354578377,1740579853969,-5555.0,0.0005732,120]
[354578378,1740579854040,-5555.0,0.0005732,120]
[354578379,1740579854101,-5555.0,0.0005732,120]
[354578380,1740579854165,-5555.0,0.0005732,120]
[354578381,1740579854235,-5555.0,0.0005732,120]
[354578382,1740579854304,-5555.0,0.0005732,120]
[354578383,1740579854368,-152.75574554,0.00057534,120]
[354578384,1740579854437,-500.0,0.00057534,120]
[354578385,1740579854512,-500.0,0.00057534,120]
[354578386,1740579854590,-500.0,0.00057808,120]
[354578387,1740579854660,-500.0,0.00057808,120]
[354578388,1740579854731,-650.28,0.00058082,120]
[354578389,1740579854798,-935.0,0.00058082,120]
[354578390,1740579854865,-5555.0,0.0005832,120]
[354578391,1740579854932,-5555.0,0.0005832,120]
[354578392,1740579854998,-5555.0,0.0005832,120]
[354578393,1740579855061,-151.0,0.00059,120]
[354578394,1740579855127,-151.0,0.00059,120]
[354578395,1740579855190,-5555.0,0.0005932,120]
[354578396,1740579855250,-5555.0,0.0005932,120]
[354578397,1740579855312,-5555.0,0.0005932,120]
[354578398,1740579855378,-5555.0,0.0005932,120]
[354578399,1740579855447,-5555.0,0.0005932,120]
[354578400,1740579855517,-5000.0,0.000595,110]
[354578401,1740579855575,-1813.7873679,0.00059524,120]
[354578402,1740579855637,-3005.0834332,0.00059626,120]
[354578403,1740579855695,-500.0,0.00059726,7]
[354578404,1740579855757,-917.27,0.00059726,120]
[354578405,1740579855817,-500.0,0.00059726,120]
[354578406,1740579855877,-960.5,0.00059726,120]
[354578407,1740579855932,-151.0,0.00059726,120]
[354578408,1740579855988,-151.0,0.00059726,120]
[354578409,1740579856046,-500.0,0.00059726,120]
[354578410,1740579856107,-151.0,0.00059726,120]
[354578411,1740579856170,-248.87652,0.00059726,120]
[354578412,1740579856231,-1126.74,0.00059726,120]
[354578413,1740579856293,-500.0,0.00059726,120]
[354578414,1740579856360,-1381.74,0.00059726,120]
[354578415,1740579856431,-500.0,0.00059726,120]
[354578416,1740579856497,-500.0,0.00059726,120]
[354578417,1740579856561,-500.0,0.00059726,120]
[354578418,1740579856629,-6540.99,0.00059726,120]
[354578419,1740579856692,-8202.76,0.00059726,120]
[354578420,1740579856758,-500.0,0.00059726,120]
[354578421,1740579856825,-500.0,0.00059726,120]
[354578422,1740579856887,-1151.19,0.00059726,120]
[354578423,1740579856952,-1719.3,0.00059726,120]
[354578424,1740579857021,-500.0,0.00059726,120]
[354578425,1740579857091,-500.0,0.00059726,120]
[354578426,1740579857155,-500.0,0.00059726,120]
[354578427,1740579857222,-500.0,0.00059726,120]
[354578428,1740579857292,-500.0,0.00059726,120]
[354578429,1740579857361,-504.37483759,0.00059726,120]
[354578430,1740579857430,-700.31,0.00059726,120]
[354578431,1740579857503,-500.0,0.00059726,120]
[354578432,1740579857567,-2452.49,0.00059726,120]
[354578433,1740579857629,-1463.35,0.00059726,120]
[354578434,1740579857689,-2694.76,0.00059726,120]
[354578435,1740579857754,-1717.62,0.00059726,120]
[354578436,1740579857819,-521.34,0.00059726,120]
[354578437,1740579857880,-1000.0,0.00059726,20]
[354578438,1740579857937,-500.0,0.00059726,120]
[354578439,1740579857999,-507.49660039,0.00059726,120]
[354578440,1740579858060,-500.0,0.00059726,120]
[354578441,1740579858123,-500.0,0.00059726,120]
[354578442,1740579858187,-5390.23,0.00059726,120]
[354578443,1740579858256,-500.0,0.00059726,120]
[354578444,1740579858323,-2172.14,0.00059726,120]
[354578445,1740579858387,-500.0,0.00059726,120]
[354578446,1740579858451,-629.15501364,0.00059726,120]
[354578447,1740579858522,-500.0,0.00059726,120]
[354578448,1740579858593,-500.0,0.00059726,120]
[354578449,1740579858660,-500.0,0.00059726,120]
[354578450,1740579858722,-500.0,0.00059726,120]
[354578451,1740579858790,-556.31,0.00059726,120]
[354578452,1740579858851,-625.49,0.00059726,120]
[354578453,1740579858913,-500.0,0.00059726,120]
[354578454,1740579858974,-500.0,0.00059726,120]
[354578455,1740579859033,-3705.75,0.00059726,120]
[354578456,1740579859093,-500.0,0.00059726,120]
[354578457,1740579859152,-205243.14,0.00059726,7]
[354578458,1740579859212,-709.92,0.00059726,120]
[354578459,1740579859273,-917.12,0.00059726,120]
[354578460,1740579859339,-986.75,0.00059726,120]
[354578461,1740579859402,-164.27514471,0.00059726,120]
[354578462,1740579859463,-500.0,0.00059726,120]
[354578463,1740579859532,-500.0,0.00059726,21]
[354578464,1740579859603,-500.0,0.00059726,120]
[354578465,1740579859666,-500.0,0.00059726,120]
[354578466,1740579859724,-1563.56,0.00059726,120]
[354578467,1740579859785,-3765.23,0.00059726,120]
[354578468,1740579859849,-500.0,0.00059726,120]
[354578469,1740579859909,-14560.98,0.00059726,120]
[354578470,1740579859969,-500.0,0.00059726,120]
[354578471,1740579860166,-500.0,0.00059726,120]
[354578472,1740579860233,-836.85,0.00059726,120]
[354578473,1740579860294,-695.04,0.00059726,120]
[354578474,1740579860360,-4017.93,0.00059726,120]
[354578475,1740579860428,-500.0,0.00059726,120]
[354578476,1740579860508,-9942.46,0.00059726,120]
[354578477,1740579860580,-21936.18,0.00059726,120]
[354578478,1740579860649,-520.12453513,0.00059726,120]
[354578479,1740579860711,-11727.25,0.00059726,120]
[354578480,1740579860770,-1048.45,0.00059726,30]
[354578481,1740579860837,-2392.51,0.00059726,120]
[354578482,1740579860899,-500.0,0.00059726,120]
[354578483,1740579860959,-1281.85,0.00059726,120]
[354578484,1740579861019,-500.0,0.00059726,30]
[354578485,1740579861075,-500.0,0.00059726,120]
[354578486,1740579861133,-2569.85,0.00059726,120]
[354578487,1740579861189,-4415.59,0.00059726,120]
[354578488,1740579861250,-274.63779959,0.00059726,120]
[354578489,1740579861312,-500.0,0.00059726,120]
[354578490,1740579861373,-1840.13,0.00059726,120]
[354578491,1740579861439,-500.0,0.00059726,120]
[354578492,1740579861505,-500.0,0.00059726,120]
[354578493,1740579861570,-500.0,0.00059726,120]
[354578494,1740579861631,-639.73,0.00059726,120]
[354578495,1740579861693,-500.0,0.00059726,120]
[354578496,1740579861755,-500.0,0.00059726,120]
[354578497,1740579861814,-3820.04,0.00059726,120]
[354578498,1740579861870,-2296.51,0.00059726,120]
[354578499,1740579861930,-500.0,0.00059726,120]
[354578500,1740579861990,-500.0,0.00059726,120]
[354578501,1740579862048,-500.0,0.00059726,120]
[354578502,1740579862108,-3158.28,0.00059726,120]
[354578503,1740579862169,-500.0,0.00059726,120]
[354578504,1740579862231,-986.87,0.00059726,120]
[354578505,1740579862296,-500.0,0.00059726,120]
[354578506,1740579862361,-1283.45,0.00059726,120]
[354578507,1740579862431,-1562.71,0.00059726,120]
[354578508,1740579862497,-500.0,0.00059726,120]
[354578509,1740579862562,-500.0,0.00059726,120]
[354578510,1740579862625,-1742.25,0.00059726,120]
[354578511,1740579862686,-1458.25,0.00059726,120]
[354578512,1740579862747,-566.02,0.00059726,120]
[354578513,1740579862811,-1798.68,0.00059726,120]
[354578514,1740579862873,-671.49,0.00059726,120]
[354578515,1740579862935,-3547.41,0.00059726,120]
[354578516,1740579862998,-2841.24,0.00059726,120]
[354578517,1740579863064,-2630.42,0.00059726,120]
[354578518,1740579863125,-1998.76,0.00059726,120]
[354578519,1740579863180,-3000.0,0.00059726,120]
[354578520,1740579863241,-500.0,0.00059726,120]
[354578521,1740579863308,-500.0,0.00059726,120]
[354578522,1740579863371,-500.0,0.00059726,120]
[354578523,1740579863444,-500.0,0.00059726,10]
[354578524,1740579863516,-500.0,0.00059726,120]
[354578525,1740579863590,-4196.21,0.00059726,120]
[354578526,1740579863658,-500.0,0.00059726,120]
[354578527,1740579863727,-503.32504192,0.00059726,120]
[354578528,1740579863795,-2816.05,0.00059726,120]
[354578529,1740579863859,-250.0,0.00059726,120]
[354578530,1740579863922,-527.41,0.00059726,120]
[354578531,1740579863986,-544.05,0.00059726,120]
[354578532,1740579864050,-500.0,0.00059726,120]
[354578533,1740579864115,-734.83,0.00059726,120]
[354578534,1740579864181,-543.09576557,0.00059773,15]
[354578535,1740579864246,-8819.55,0.000598,30]
[354578536,1740579864313,-333.23915159,0.00059999,120]
[354578537,1740579864377,-392.56642399,0.00059999,120]
[354578538,1740579864449,-500.0,0.00059999,31]
[354578539,1740579864524,-330.28836768,0.00059999,31]
[354578540,1740579864602,-500.0,0.00059999,120]
[354578541,1740579864680,-500.0,0.00059999,31]
[354578542,1740579864755,-500.0,0.00059999,120]
[354578543,1740579864826,-500.0,0.00059999,31]
[354578544,1740579864899,-463.5613111,0.00059999,120]
[354578545,1740579864971,-500.0,0.00059999,31]
[354578546,1740579865043,-500.0,0.00059999,31]
[354578547,1740579865116,-500.0,0.00059999,120]
[354578548,1740579865183,-50000.0005,0.0006,120]
[354578549,1740579865253,-1000.0,0.00060052,15]
[354578550,1740579865324,-1000.0,0.00060052,15]
[354578551,1740579865397,-1001.22782912,0.00060052,14]
[354578552,1740579865478,-501.11670376,0.00060052,15]
[354578553,1740579865563,-1000.0,0.00060052,15]
[354578554,1740579865643,-1000.0,0.00060052,15]
[354578555,1740579865715,-1000.0,0.00060052,15]
[354578556,1740579865788,-1000.0,0.00060052,14]
[354578557,1740579865861,-1000.0,0.00060052,15]
[354578558,1740579865927,-1000.0,0.00060052,15]
[354578559,1740579865996,-1000.0,0.00060052,15]
[354578560,1740579866070,-179.25,0.000601,30]
[354578561,1740579866143,-583.15,0.000601,30]
[354578562,1740579866213,-5555.0,0.00060898,120]
[354578563,1740579866284,-5555.0,0.00060898,120]
[354578564,1740579866360,-5555.0,0.00060898,120]
[354578565,1740579866569,-5555.0,0.00060898,120]
[354578566,1740579866642,-1500.0,0.00061698,15]
[354578567,1740579866714,-1119.2763,0.00061698,15]
[354578568,1740579866780,-1000.0,0.00061698,15]
[354578569,1740579866856,-1828.78913679,0.00061898,120]
[354578570,1740579866925,-609.1,0.000619,7]
[354578571,1740579866994,-500.0,0.000619,30]
[354578572,1740579867058,-500.5,0.00062,120]
[354578573,1740579867122,-500.0,0.00062173,15]
[354578574,1740579867187,-500.0,0.00062191,120]
[354578575,1740579867252,-418.3307912,0.00062191,120]
[354578576,1740579867316,-500.0,0.00062191,120]
[354578577,1740579867387,-500.0,0.00062191,120]
[354578578,1740579867462,-599.15827177,0.00062191,120]
[354578579,1740579867538,-231.12730587,0.00062191,120]
[354578580,1740579867612,-500.0,0.00062191,120]
[354578581,1740579867675,-500.0,0.00062191,120]
[354578582,1740579867741,-500.0,0.00062191,120]
[354578583,1740579867811,-536.62,0.00062191,120]
[354578584,1740579867881,-500.0,0.00062191,120]
[354578585,1740579867946,-500.0,0.00062191,120]
[354578586,1740579868007,-500.0,0.00062191,120]
[354578587,1740579868073,-948.33,0.00062191,120]
[354578588,1740579868135,-469.08831952,0.00062191,120]
[354578589,1740579868196,-523.40440468,0.00062191,120]
[354578590,1740579868260,-500.0,0.00062191,120]
[354578591,1740579868321,-501.067029,0.00062191,120]
[354578592,1740579868385,-1182.23,0.00062191,120]
[354578593,1740579868453,-500.0,0.00062191,30]
[354578594,1740579868519,-766.23,0.00062191,120]
[354578595,1740579868587,-500.0,0.00062191,120]
[354578596,1740579868653,-500.0,0.00062191,120]
[354578597,1740579868718,-500.0,0.00062191,120]
[354578598,1740579868782,-500.0,0.00062191,120]
[354578599,1740579868846,-500.0,0.00062191,120]
[354578600,1740579868906,-500.0,0.00062191,30]
[354578601,1740579868969,-503.7741359,0.00062191,120]
[354578602,1740579869027,-511.33141205,0.00062191,120]
[354578603,1740579869091,-500.0,0.00062191,120]
[354578604,1740579869150,-500.0,0.00062191,120]
[354578605,1740579869211,-500.0,0.00062191,120]
[354578606,1740579869273,-500.0,0.00062191,120]
[354578607,1740579869337,-500.0,0.00062191,120]
[354578608,1740579869401,-507.76135394,0.00062191,120]
[354578609,1740579869464,-500.0,0.00062191,120]
[354578610,1740579869530,-500.0,0.00062191,120]
[354578611,1740579869600,-500.0,0.00062191,120]
[354578612,1740579869667,-500.0,0.00062191,120]
[354578613,1740579869735,-500.0,0.00062191,120]
[354578614,1740579869805,-500.0,0.00062191,120]
[354578615,1740579869870,-899.43,0.00062191,120]
[354578616,1740579869931,-500.0,0.00062191,120]
[354578617,1740579869996,-500.0,0.00062191,120]
[354578618,1740579870063,-500.0,0.00062191,120]
[354578619,1740579870129,-500.0,0.00062191,120]
[354578620,1740579870191,-500.0,0.00062191,120]
[354578621,1740579870252,-500.0,0.00062191,120]
[354578622,1740579870312,-500.0,0.00062191,120]
[354578623,1740579870372,-500.0,0.00062191,120]
[354578624,1740579870434,-500.0,0.00062191,120]
[354578625,1740579870508,-500.0,0.00062191,120]
[354578626,1740579870571,-500.0,0.00062191,120]
[354578627,1740579870630,-1239.34,0.00062191,120]
[354578628,1740579870689,-500.0,0.00062191,120]
[354578629,1740579870746,-500.0,0.00062191,120]
[354578630,1740579870807,-500.0,0.00062191,120]
[354578631,1740579870867,-500.0,0.00062191,120]
[354578632,1740579870924,-500.0,0.00062191,120]
[354578633,1740579870983,-536.05514205,0.00062191,120]
[354578634,1740579871038,-500.0,0.00062191,120]
[354578635,1740579871099,-598.36898541,0.00062191,120]
[354578636,1740579871158,-500.0,0.00062191,120]
[354578637,1740579871217,-500.0,0.00062191,120]
[354578638,1740579871275,-500.0,0.00062191,120]
[354578639,1740579871334,-2842.07,0.00062191,120]
[354578640,1740579871397,-500.0,0.00062191,120]
[354578641,1740579871460,-500.0,0.00062191,120]
[354578642,1740579871531,-500.0,0.00062191,120]
[354578643,1740579871597,-938.59,0.00062191,120]
[354578644,1740579871659,-437.97610867,0.00062191,120]
[354578645,1740579871720,-500.0,0.00062191,120]
[354578646,1740579871787,-500.0,0.00062191,120]
[354578647,1740579871854,-1030.22,0.00062191,120]
[354578648,1740579871914,-500.0,0.00062191,120]
[354578649,1740579871977,-556.52,0.00062191,120]
[354578650,1740579872041,-505.96454435,0.00062191,120]
[354578651,1740579872109,-500.0,0.00062191,120]
[354578652,1740579872177,-1286.42,0.00062191,120]
[354578653,1740579872242,-180.23217036,0.00062191,120]
[354578654,1740579883101,-500.0,0.00041394,120]
[354578655,1740579883162,-500.0,0.00041394,120]
[354578656,1740579883220,-500.0,0.00041394,120]
[354578657,1740579883287,-500.0,0.00041394,120]
[354578658,1740579883358,-500.0,0.00041394,120]
[354578659,1740579883427,-500.0,0.00041394,120]
[354578660,1740579883495,-500.0,0.00041394,120]
[354578661,1740579883566,-500.0,0.00041394,120]
[354578662,1740579883632,-500.0,0.00041394,120]
[354578663,1740579883694,-500.0,0.00041394,120]
[354578664,1740579883762,-500.0,0.00041394,120]
[354578665,1740579883831,-500.0,0.00041394,120]
[354578666,1740579883890,-500.0,0.00041394,120]
[354578667,1740579883951,-500.0,0.00041394,120]
[354578668,1740579884012,-500.0,0.00041394,120]
[354578669,1740579884076,-500.0,0.00041394,120]
[354578670,1740579884139,-500.0,0.00041394,120]
[354578671,1740579884204,-423.93400111,0.00041394,120]
[354578672,1740579884273,-500.0,0.00051074,120]
[354578673,1740579884341,-153.93,0.000511,30]
[354578674,1740579884620,-2111.89,0.00052602,120]
[354578675,1740579884690,-2111.89,0.00052876,120]
[354578676,1740579884766,-2111.89,0.0005315,120]
[354578677,1740579884841,-2111.89,0.00053424,120]
[354578678,1740579884910,-2111.89,0.00053698,120]
[354578679,1740579884982,-500.0,0.00053899,120]
[354578680,1740579885056,-500.0,0.00053899,120]
[354578681,1740579885129,-500.0,0.00053899,120]
[354578682,1740579885193,-500.0,0.00053899,120]
[354578683,1740579885253,-500.0,0.00053899,120]
[354578684,1740579885320,-500.0,0.00053899,120]
[354578685,1740579885376,-500.0,0.00053899,120]
[354578686,1740579885437,-500.0,0.00053899,120]
[354578687,1740579885504,-500.0,0.00053899,120]
[354578688,1740579885570,-500.0,0.00053899,120]
[354578689,1740579885632,-500.0,0.00053899,120]
[354578690,1740579885695,-500.0,0.00053899,120]
[354578691,1740579885761,-500.0,0.00053899,120]
[354578692,1740579885828,-500.0,0.00053899,120]
[354578693,1740579885893,-500.0,0.00053899,120]
[354578694,1740579885956,-500.0,0.00053899,120]
[354578695,1740579886023,-500.0,0.00053899,120]
[354578696,1740579886089,-500.0,0.00053899,120]
[354578697,1740579886153,-500.0,0.00053899,120]
[354578698,1740579886215,-500.0,0.00053899,120]
[354578699,1740579886272,-500.0,0.00053899,120]
[354578700,1740579886330,-500.0,0.00053899,120]
[354578701,1740579886392,-500.0,0.00053899,120]
[354578702,1740579886452,-500.0,0.00053899,120]
[354578703,1740579886514,-500.0,0.00053899,120]
[354578704,1740579886577,-500.0,0.00053899,120]
[354578705,1740579886639,-500.0,0.00053899,120]
[354578706,1740579886705,-500.0,0.00053899,120]
[354578707,1740579886765,-500.0,0.00053899,120]
[354578708,1740579886824,-500.0,0.00053899,120]
[354578709,1740579886887,-500.0,0.00053899,120]
[354578710,1740579886952,-500.0,0.00053899,120]
[354578711,1740579887021,-500.0,0.00053899,120]
[354578712,1740579887089,-500.0,0.00053899,120]
[354578713,1740579887154,-500.0,0.00053899,120]
[354578714,1740579887216,-500.0,0.00053899,120]
[354578715,1740579887280,-500.0,0.00053899,120]
[354578716,1740579887361,-500.0,0.00053899,120]
[354578717,1740579887429,-500.0,0.00053899,120]
[354578718,1740579887502,-500.0,0.00053899,120]
[354578719,1740579887574,-500.0,0.00053899,120]
[354578720,1740579887648,-500.0,0.00053899,120]
[354578721,1740579887717,-500.0,0.00053899,120]
[354578722,1740579887780,-500.0,0.00053899,120]
[354578723,1740579887851,-500.0,0.00053899,120]
[354578724,1740579887917,-500.0,0.00053899,120]
[354578725,1740579887982,-500.0,0.00053899,120]
[354578726,1740579888051,-500.0,0.00053899,120]
[354578727,1740579888123,-500.0,0.00053899,120]
[354578728,1740579888188,-234.12138139,0.00053899,120]
[354578729,1740579888251,-500.0,0.00053899,120]
[354578730,1740579888319,-500.0,0.00053899,120]
[354578731,1740579888383,-500.0,0.00053899,120]
[354578732,1740579888449,-500.0,0.00053899,120]
[354578733,1740579888514,-500.0,0.00053899,120]
[354578734,1740579888799,-500.0,0.00053899,120]
[354578735,1740579888868,-500.0,0.00053899,120]
[354578736,1740579888933,-500.0,0.00053899,120]
[354578737,1740579889002,-500.0,0.00053899,120]
[354578738,1740579889075,-500.0,0.00053899,120]
[354578739,1740579889139,-500.0,0.00053899,120]
[354578740,1740579889207,-500.0,0.00053899,120]
[354578741,1740579889273,-500.0,0.00053899,120]
[354578742,1740579889334,-500.0,0.00053899,120]
[354578743,1740579889403,-500.0,0.00053899,120]
[354578744,1740579889474,-500.0,0.00053899,120]
[354578745,1740579889549,-500.0,0.00053899,120]
[354578746,1740579889622,-500.0,0.00053899,120]
[354578747,1740579889691,-500.0,0.00053899,120]
[354578748,1740579889753,-500.0,0.00053899,120]
[354578749,1740579889821,-500.0,0.00053899,120]
[354578750,1740579889886,-500.0,0.00053899,120]
[354578751,1740579889952,-500.0,0.00053899,120]
[354578752,1740579890019,-500.0,0.00053899,120]
[354578753,1740579890084,-500.0,0.00053899,120]
[354578754,1740579890151,-500.0,0.00053899,120]
[354578755,1740579890220,-500.0,0.00053899,120]
[354578756,1740579890282,-500.0,0.00053899,120]
[354578757,1740579890350,-500.0,0.00053899,120]
[354578758,1740579890419,-500.0,0.00053899,120]
[354578759,1740579890495,-500.0,0.00053899,120]
[354578760,1740579890572,-500.0,0.00053899,120]
[354578761,1740579890640,-500.0,0.00053899,120]
[354578762,1740579890701,-500.0,0.00053899,120]
[354578763,1740579890764,-500.0,0.00053899,120]
[354578764,1740579890826,-500.0,0.00053899,120]
[354578765,1740579890889,-500.0,0.00053899,120]
[354578766,1740579890951,-500.0,0.00053899,120]
[354578767,1740579891023,-500.0,0.00053899,120]
[354578768,1740579891088,-500.0,0.00053899,120]
[354578769,1740579891154,-500.0,0.00053899,120]
[354578770,1740579891222,-322.56917946,0.00053899,120]
[354578771,1740579891284,-500.0,0.00053899,120]
[354578772,1740579891349,-500.0,0.00053899,120]
[354578773,1740579891410,-500.0,0.00053899,120]
[354578774,1740579891474,-500.0,0.00053899,120]
[354578775,1740579891546,-500.0,0.00053899,120]
[354578776,1740579891615,-500.0,0.00053899,120]
[354578777,1740579891682,-500.0,0.00053899,120]
[354578778,1740579891742,-500.0,0.00053899,120]
[354578779,1740579891801,-500.0,0.00053899,120]
[354578780,1740579891864,-500.0,0.00053899,120]
[354578781,1740579891922,-350.0,0.00053899,120]
[354578782,1740579891988,-500.0,0.00053899,120]
[354578783,1740579892066,-500.0,0.00053899,120]
[354578784,1740579892144,-500.0,0.00053899,120]
[354578785,1740579892218,-500.0,0.00053899,120]
[354578786,1740579892288,-500.0,0.00053899,120]
[354578787,1740579892353,-500.0,0.00053899,120]
[354578788,1740579892418,-200.0,0.00053899,120]
[354578789,1740579892486,-3780.0,0.000539,30]
[354578790,1740579892553,-9204.54,0.000539,30]
[354578791,1740579892622,-2111.89,0.00053972,120]
[354578792,1740579892691,-2111.89,0.00054246,120]
[354578793,1740579892757,-2111.89,0.0005452,120]
[354578794,1740579892819,-500.0,0.00054599,31]
[354578795,1740579892879,-500.0,0.00054599,31]
[354578796,1740579892937,-481.20185738,0.00054599,31]
[354578797,1740579892995,-500.0,0.00054599,31]
[354578798,1740579893051,-500.0,0.00054599,120]
[354578799,1740579893113,-500.0,0.00054599,120]
[354578800,1740579893171,-374.49291777,0.00054599,120]
[354578801,1740579893229,-646.2,0.00054794,120]
[354578802,1740579893287,-500.0,0.00054794,120]
[354578803,1740579893344,-500.0,0.00054794,120]
[354578804,1740579893409,-4549.97,0.00054794,120]
[354578805,1740579893472,-500.0,0.00054794,120]
[354578806,1740579893537,-500.0,0.00054794,120]
[354578807,1740579893603,-1159.31,0.00054794,120]
[354578808,1740579893676,-500.0,0.00054794,120]
[354578809,1740579893761,-500.0,0.00054794,120]
[354578810,1740579893828,-500.0,0.00054794,120]
[354578811,1740579893892,-30388.62,0.00054794,120]
[354578812,1740579893954,-1227.8,0.00054794,120]
[354578813,1740579894014,-500.0,0.00054794,120]
[354578814,1740579894076,-22892.42,0.00054794,120]
[354578815,1740579894134,-500.0,0.00054794,120]
[354578816,1740579894191,-1108.98,0.00054794,120]
[354578817,1740579894247,-3764.27,0.00054794,120]
[354578818,1740579894307,-761.05,0.00054794,120]
[354578819,1740579894371,-500.0,0.00054794,120]
[354578820,1740579894433,-402.96688032,0.00054794,120]
[354578821,1740579894502,-6016.67,0.00054794,120]
[354578822,1740579894566,-500.0,0.00054794,120]
[354578823,1740579894629,-546.57,0.00054794,120]
[354578824,1740579894694,-2111.89,0.00054794,120]
[354578825,1740579894756,-500.0,0.00054794,120]
[354578826,1740579894823,-1577.3,0.00054794,120]
[354578827,1740579894880,-12447.15,0.00054794,120]
[354578828,1740579895088,-500.0,0.00054794,120]
[354578829,1740579895148,-2425.42,0.00054794,120]
[354578830,1740579895206,-500.0,0.00054794,120]